fUST/lending_fUST_20250715
["ID","MTS","AMOUNT","RATE_DAILY","PERIOD"]
[372096165,1752517865393,-151.0,0.00017808,2]
[372096167,1752517865402,-151.0,0.00017808,2]
[372096168,1752517865412,-460.0,0.00017808,2]
[372096170,1752517865422,-460.0,0.00017808,2]
[372096172,1752517865431,-390.266154,0.00017808,2]
[372096174,1752517865441,-390.266154,0.00017808,2]
[372096176,1752517865451,-460.0,0.00017808,2]
[372096178,1752517865461,-460.0,0.00017808,2]
[372096180,1752517865472,-460.0,0.00017808,2]
[372096182,1752517865481,-460.0,0.00017808,2]
[372096184,1752517865490,-460.0,0.00017808,2]
[372096185,1752517865501,-460.0,0.00017808,2]
[372096187,1752517865511,-460.0,0.00017808,2]
[372096189,1752517865524,-481.86184393,0.00017808,2]
[372096191,1752517865534,-460.0,0.00017808,2]
[372096193,1752517865545,-460.0,0.00017808,2]
[372096195,1752517865555,-521.56790027,0.00017808,2]
[372096197,1752517865565,-460.0,0.00017808,2]
[372096199,1752517865574,-199.569876,0.00017808,2]
[372096201,1752517865584,-199.569876,0.00017808,2]
[372096203,1752517865594,-460.0,0.00017808,2]
[372096205,1752517865605,-460.0,0.00017808,2]
[372096207,1752517865614,-556.16,0.00017808,2]
[372096209,1752517865624,-151.0,0.00017808,2]
[372096211,1752517865634,-273.157077,0.00017808,2]
[372096213,1752517865644,-460.0,0.00017808,2]
[372096215,1752517865654,-460.0,0.00017808,2]
[372096217,1752517865663,-460.0,0.00017808,2]
[372096219,1752517865673,-195.718083,0.00017808,2]
[372096221,1752517865683,-460.0,0.00017808,2]
[372096223,1752517865694,-460.0,0.00017808,2]
[372096225,1752517865704,-195.718083,0.00017808,2]
[372096227,1752517865714,-460.0,0.00017808,2]
[372096228,1752517865723,-151.0,0.00017808,2]
[372096230,1752517865734,-460.0,0.00017808,2]
[372096232,1752517865743,-151.0,0.00017808,2]
[372096234,1752517865752,-460.0,0.00017808,2]
[372096236,1752517865762,-460.0,0.00017808,2]
[372096238,1752517865771,-460.0,0.00017808,2]
[372096240,1752517865780,-460.0,0.00017808,2]
[372096242,1752517865790,-498.7,0.00017808,2]
[372096244,1752517865800,-460.0,0.00017808,2]
[372096246,1752517865810,-460.0,0.00017808,2]
[372096247,1752517865820,-516.79,0.00017808,2]
[372096249,1752517865829,-460.0,0.00017808,2]
[372096251,1752517865839,-460.0,0.00017808,2]
[372096253,1752517865849,-460.0,0.00017808,2]
[372096255,1752517865858,-460.0,0.00017808,2]
[372096257,1752517865868,-460.0,0.00017808,2]
[372096259,1752517865877,-460.0,0.00017808,2]
[372096261,1752517865887,-667.58,0.00017808,2]
[372096263,1752517865897,-460.0,0.00017808,2]
[372096265,1752517865906,-460.0,0.00017808,2]
[372096267,1752517865917,-672.98,0.00017808,2]
[372096268,1752517865926,-460.0,0.00017808,2]
[372096270,1752517865934,-584.47,0.00017808,2]
[372096271,1752517865945,-460.0,0.00017808,2]
[372096272,1752517865954,-407.23997002,0.00017808,2]
[372096273,1752517865963,-460.0,0.00017808,2]
[372096274,1752517865974,-742.39,0.00017808,2]
[372096275,1752517865985,-795.72,0.00017808,2]
[372096276,1752517865994,-460.0,0.00017808,2]
[372096277,1752517866003,-151.0,0.00017808,2]
[372096278,1752517866013,-676.25,0.00017808,2]
[372096279,1752517866022,-520.62,0.00017808,2]
[372096280,1752517866032,-460.0,0.00017808,2]
[372096281,1752517866042,-796.53,0.00017808,2]
[372096282,1752517866051,-460.0,0.00017808,2]
[372096283,1752517866061,-619.6,0.00017808,2]
[372096284,1752517866071,-460.0,0.00017808,2]
[372096285,1752517866080,-389.11187752,0.00017808,2]
[372096286,1752517866375,-460.0,0.00016438,2]
[372096287,1752517866386,-460.0,0.00016986,2]
[372096288,1752517866396,-3938.64262905,0.00017808,2]
[372096289,1752517866573,-460.0,0.00016438,2]
[372096290,1752517866583,-460.0,0.00016712,2]
[372096291,1752517866593,-460.0,0.00016712,2]
[372096292,1752517866603,-460.0,0.00016986,2]
[372096293,1752517866615,-460.0,0.0001726,2]
[372096294,1752517866624,-460.0,0.0001726,2]
[372096295,1752517866634,-460.0,0.00017534,2]
[372096296,1752517866645,-460.0,0.00017534,2]
[372096297,1752517866655,-1501.13549343,0.00017808,2]
[372096298,1752517866665,-1306.21,0.00017808,2]
[372096299,1752517866675,-3982.06,0.00017808,2]
[372096300,1752517866684,-897.34,0.00017808,2]
[372096301,1752517866693,-462.76339749,0.00017808,2]
[372096302,1752517866705,-456.17660251,0.00017808,2]
[372096303,1752517866715,-572.44212679,0.00017808,2]
[372096304,1752517866726,-994.5,0.00017808,2]
[372096305,1752517867111,-460.0,0.00016438,2]
[372096306,1752517867121,-460.0,0.00016712,2]
[372096307,1752517867131,-1646.15787321,0.00017808,2]
[372096308,1752517867140,-265.6937119,0.00017808,2]
[372096309,1752517867150,-460.0,0.00017808,2]
[372096310,1752517867159,-460.0,0.00017808,2]
[372096311,1752517867169,-460.0,0.00017808,2]
[372096312,1752517867178,-646.53,0.00017808,2]
[372096313,1752517867187,-1106.83,0.00017808,2]
[372096314,1752517867196,-463.58,0.00017808,2]
[372096315,1752517867206,-789.5,0.00017808,2]
[372096316,1752517867215,-3981.2,0.00017808,2]
[372096317,1752517867225,-1575.01,0.00017808,2]
[372096318,1752517867235,-460.0,0.00017808,2]
[372096319,1752517867244,-460.0,0.00017808,2]
[372096320,1752517867253,-534.8,0.00017808,2]
[372096321,1752517867265,-460.0,0.00017808,2]
[372096322,1752517867274,-612.41,0.00017808,2]
[372096323,1752517867283,-151.0,0.00017808,2]
[372096324,1752517867293,-1506.4,0.00017808,2]
[372096325,1752517867302,-40.08852949,0.00017808,2]
[372096326,1752517867321,-419.91147051,0.00017808,2]
[372096327,1752517867331,-271.56123046,0.00017808,2]
[372096328,1752517867340,-460.0,0.00017808,2]
[372096329,1752517867349,-464.82,0.00017808,2]
[372096330,1752517867359,-2280.65,0.00017808,2]
[372096331,1752517867368,-1377.07,0.00017808,2]
[372096332,1752517867377,-580.52143608,0.00017808,2]
[372096333,1752517867388,-460.0,0.00017808,2]
[372096334,1752517867398,-551.71,0.00017808,2]
[372096335,1752517867407,-460.0,0.00017808,2]
[372096336,1752517867418,-462.03,0.00017808,2]
[372096337,1752517867428,-460.0,0.00017808,2]
[372096338,1752517867437,-975.93,0.00017808,2]
[372096339,1752517867447,-460.0,0.00017808,2]
[372096340,1752517867457,-460.0,0.00017808,2]
[372096341,1752517867466,-1275.96,0.00017808,2]
[372096342,1752517867475,-460.0,0.00017808,2]
[372096343,1752517867485,-460.0,0.00017808,2]
[372096344,1752517867495,-762.29,0.00017808,2]
[372096345,1752517867504,-909.37,0.00017808,2]
[372096346,1752517867514,-1969.98,0.00017808,2]
[372096347,1752517867527,-1571.21,0.00017808,2]
[372096348,1752517867536,-460.0,0.00017808,2]
[372096349,1752517867547,-460.0,0.00017808,2]
[372096350,1752517867557,-240.52609319,0.00017808,2]
[372096351,1752517867566,-965.0,0.0001783,2]
[372096352,1752517867576,-1000.0,0.00017868,2]
[372096353,1752517867585,-1500.0,0.00017868,2]
[372096354,1752517867597,-1000.0,0.00017868,2]
[372096355,1752517867606,-469.81590477,0.00017868,2]
[372096356,1752517867616,-800.0,0.00017892,2]
[372096357,1752517867625,-168.0,0.00017895,2]
[372096358,1752517867724,-581.54719,0.000179,2]
[372096359,1752517867734,-581.547196,0.000179,2]
[372096360,1752517867743,-4976.1627827,0.000179,2]
[372096361,1752517867753,-177.8544682,0.00017973,2]
[372096362,1752517867763,-576.6654682,0.00017973,2]
[372096363,1752517867773,-159.6739465,0.00017973,2]
[372096364,1752517867784,-160.0,0.00017973,2]
[372096365,1752517867793,-155.0,0.00018081,2]
[372096366,1752517867803,-151.0,0.00018082,2]
[372096367,1752517867814,-151.0,0.00018082,2]
[372096368,1752517867823,-460.0,0.00018082,2]
[372096369,1752517867833,-460.0,0.00018082,2]
[372096370,1752517867844,-390.266154,0.00018082,2]
[372096371,1752517867854,-390.266153,0.00018082,2]
[372096372,1752517867866,-289.33184051,0.00018082,2]
[372096373,1752517867875,-460.0,0.00018082,2]
[372096374,1752517867886,-460.0,0.00018082,2]
[372096375,1752517867896,-460.0,0.00018082,2]
[372096376,1752517867906,-460.0,0.00018082,2]
[372096377,1752517867916,-460.0,0.00018082,2]
[372096378,1752517867925,-460.0,0.00018082,2]
[372096379,1752517867935,-460.0,0.00018082,2]
[372096380,1752517867944,-199.569876,0.00018082,2]
[372096381,1752517867954,-199.569876,0.00018082,2]
[372096382,1752517867964,-460.0,0.00018082,2]
[372096383,1752517867973,-460.0,0.00018082,2]
[372096384,1752517867982,-151.0,0.00018082,2]
[372096385,1752517867992,-151.0,0.00018082,2]
[372096386,1752517868002,-460.0,0.00018082,2]
[372096387,1752517868011,-460.0,0.00018082,2]
[372096388,1752517868020,-460.0,0.00018082,2]
[372096389,1752517868030,-460.0,0.00018082,2]
[372096390,1752517868039,-460.0,0.00018082,2]
[372096391,1752517868049,-460.0,0.00018082,2]
[372096392,1752517868059,-460.0,0.00018082,2]
[372096393,1752517868068,-460.0,0.00018082,2]
[372096394,1752517868079,-460.0,0.00018082,2]
[372096395,1752517868089,-460.0,0.00018082,2]
[372096396,1752517868099,-460.0,0.00018082,2]
[372096397,1752517868111,-498.7,0.00018082,2]
[372096398,1752517868121,-460.0,0.00018082,2]
[372096399,1752517868131,-516.79,0.00018082,2]
[372096400,1752517868140,-460.0,0.00018082,2]
[372096401,1752517868150,-460.0,0.00018082,2]
[372096402,1752517868160,-460.0,0.00018082,2]
[372096403,1752517868169,-460.0,0.00018082,2]
[372096404,1752517868179,-460.0,0.00018082,2]
[372096405,1752517868190,-460.0,0.00018082,2]
[372096406,1752517868201,-667.58,0.00018082,2]
[372096407,1752517868210,-460.0,0.00018082,2]
[372096408,1752517868220,-672.98,0.00018082,2]
[372096409,1752517868230,-460.0,0.00018082,2]
[372096410,1752517868240,-584.47,0.00018082,2]
[372096411,1752517868250,-460.0,0.00018082,2]
[372096412,1752517868261,-509.52753912,0.00018082,2]
[372096413,1752517868272,-795.72,0.00018082,2]
[372096414,1752517868282,-460.0,0.00018082,2]
[372096415,1752517868292,-151.0,0.00018082,2]
[372096416,1752517868302,-520.62,0.00018082,2]
[372096417,1752517868312,-460.0,0.00018082,2]
[372096418,1752517868321,-796.53,0.00018082,2]
[372096419,1752517868331,-460.0,0.00018082,2]
[372096420,1752517868342,-619.6,0.00018082,2]
[372096421,1752517868352,-5828.89,0.00018082,2]
[372096422,1752517868362,-1306.21,0.00018082,2]
[372096423,1752517868371,-3982.06,0.00018082,2]
[372096424,1752517868381,-897.34,0.00018082,2]
[372096425,1752517868391,-918.94,0.00018082,2]
[372096426,1752517868401,-3213.1,0.00018082,2]
[372096427,1752517868411,-460.0,0.00018082,2]
[372096428,1752517868420,-460.0,0.00018082,2]
[372096429,1752517868430,-460.0,0.00018082,2]
[372096430,1752517868439,-646.53,0.00018082,2]
[372096431,1752517868448,-1106.83,0.00018082,2]
[372096432,1752517868458,-463.58,0.00018082,2]
[372096433,1752517868467,-789.5,0.00018082,2]
[372096434,1752517868477,-3981.2,0.00018082,2]
[372096435,1752517868486,-1575.01,0.00018082,2]
[372096436,1752517868495,-460.0,0.00018082,2]
[372096437,1752517868504,-534.8,0.00018082,2]
[372096438,1752517868514,-460.0,0.00018082,2]
[372096439,1752517868529,-612.41,0.00018082,2]
[372096440,1752517868539,-180.628038,0.00018082,2]
[372096441,1752517868548,-1506.4,0.00018082,2]
[372096442,1752517868559,-460.0,0.00018082,2]
[372096443,1752517868569,-460.0,0.00018082,2]
[372096444,1752517868579,-464.82,0.00018082,2]
[372096445,1752517868589,-2280.65,0.00018082,2]
[372096446,1752517868602,-1377.07,0.00018082,2]
[372096447,1752517868612,-460.0,0.00018082,2]
[372096448,1752517868622,-551.71,0.00018082,2]
[372096449,1752517868631,-460.0,0.00018082,2]
[372096450,1752517868641,-462.03,0.00018082,2]
[372096451,1752517868650,-460.0,0.00018082,2]
[372096452,1752517868659,-975.93,0.00018082,2]
[372096453,1752517868668,-460.0,0.00018082,2]
[372096454,1752517868677,-460.0,0.00018082,2]
[372096455,1752517868686,-1275.96,0.00018082,2]
[372096456,1752517868695,-460.0,0.00018082,2]
[372096457,1752517868704,-460.0,0.00018082,2]
[372096458,1752517868713,-762.29,0.00018082,2]
[372096459,1752517868722,-413.64495125,0.00018082,2]
[372096460,1752517868735,-495.72504875,0.00018082,2]
[372096461,1752517868744,-1969.98,0.00018082,2]
[372096462,1752517868754,-1571.21,0.00018082,2]
[372096463,1752517868763,-460.0,0.00018082,2]
[372096464,1752517868772,-58.68317351,0.00018082,2]
[372096465,1752517913078,2181.6409973,0.00015779,2]
[372096466,1752517971423,721.78177339,0.00015654,2]
[372096467,1752517972533,302.960704,0.00015945,2]
[372096468,1752517996388,219.3784528,0.00016037,2]
[372096469,1752518010987,167.63284173,0.00016038,2]
[372096487,1752518051518,228.85966732,0.00015962,2]
[372096488,1752518076285,509.125983,0.00013699,2]
[372096492,1752518107832,152.534434,0.000198,20]
[372096493,1752518109591,167.63284172,0.00016038,2]
[372096494,1752518208744,167.63284172,0.00016038,2]
[372096495,1752518217564,826.9930064,0.00015349,2]
[372096496,1752518273764,311.88478243,0.00015654,2]
[372096498,1752518350956,771.88911,0.00027397,120]
[372096499,1752518506545,12528.85223663,0.00015327,2]
[372096500,1752518506574,12371.14776337,0.00015327,2]
[372096501,1752518544519,391.1466721,0.00015374,2]
[372096509,1752518574972,187.13086946,0.00015654,2]
[372096510,1752518589168,171.2848267,0.00015384,2]
[372096511,1752518683573,6879.28986837,0.00015432,2]
[372096512,1752518683596,1887.85580653,0.00015432,2]
[372096513,1752518708166,152.534434,0.000198,20]
[372096517,1752518854701,421.6962264,0.00015199,2]
[372096518,1752518883209,314.542581,0.00015234,2]
[372096519,1752518885698,172.9670106,0.00015356,2]
[372096539,1752519031985,-1393.43153369,0.0001611,2]
[372096540,1752519031996,-345.49,0.00016128,3]
[372096542,1752519032007,-172.74,0.00016128,3]
[372096544,1752519032017,-518.25,0.00016128,3]
[372096546,1752519032026,-300.0,0.00016137,2]
[372096547,1752519032036,-300.0,0.00016137,2]
[372096549,1752519032045,-191.52455657,0.00016137,2]
[372096551,1752519032056,-108.47544343,0.00016137,2]
[372096553,1752519032066,-230.44010362,0.00016137,2]
[372096625,1752519038342,-460.0,0.00016137,2]
[372096945,1752519043054,-509.55989638,0.00016137,2]
[372096946,1752519043063,-3992.46571231,0.00016138,2]
[372098311,1752519184351,17202.93837547,0.00016038,2]
[372098312,1752519184382,20000.0,0.00016038,2]
[372098313,1752519184412,20000.0,0.00016038,2]
[372098314,1752519184439,20000.0,0.00016038,2]
[372098315,1752519184467,20000.0,0.00016038,2]
[372098316,1752519184495,20000.0,0.00016038,2]
[372098317,1752519184524,20000.0,0.00016038,2]
[372098318,1752519184553,20000.0,0.00016038,2]
[372098321,1752519310570,156.546168,0.000198,20]
[372098322,1752519311560,156.546168,0.000198,20]
[372098323,1752519557954,483.669683,0.00013699,2]
[372098325,1752519768873,578.916832,0.00027397,120]
[372098327,1752519823999,1000.0,0.00027397,120]
[372098328,1752519826052,983.34424812,0.00015037,2]
[372098329,1752519826076,20000.0,0.00015037,2]
[372098330,1752519826098,3916.65575188,0.00015037,2]
[372098331,1752519909264,156.546168,0.000198,20]
[372098333,1752520006030,314.5425814,0.00015032,2]
[372098334,1752520023898,-1220.85811784,0.00015844,2]
[372098335,1752520023930,-1148.69096768,0.00015935,2]
[372098336,1752520023960,-539.24,0.00016028,3]
[372098337,1752520023991,-269.62,0.00016028,3]
[372098338,1752520024022,-808.91,0.00016028,3]
[372098339,1752520024051,-825.36182896,0.00016032,2]
[372098340,1752520024980,-374.63817104,0.00016032,2]
[372098341,1752520025012,-300.0,0.00016032,2]
[372098342,1752520025042,-1200.0,0.00016033,2]
[372098343,1752520025074,-300.0,0.00016034,2]
[372098344,1752520025106,-300.0,0.00016034,2]
[372098345,1752520025137,-347.24576409,0.00016034,2]
[372098346,1752520025169,-500.0,0.00016034,2]
[372098347,1752520025201,-500.0,0.00016034,2]
[372098348,1752520025230,-500.0,0.00016034,2]
[372098349,1752520025259,-500.0,0.00016034,2]
[372098350,1752520025619,-500.0,0.00016034,2]
[372098351,1752520025651,-500.0,0.00016034,2]
[372098352,1752520025681,-500.0,0.00016034,2]
[372098353,1752520025713,-500.0,0.00016034,2]
[372098354,1752520025745,-500.0,0.00016034,2]
[372098355,1752520025776,-500.0,0.00016034,2]
[372098356,1752520025805,-500.0,0.00016034,2]
[372098357,1752520025836,-500.0,0.00016034,2]
[372098358,1752520025866,-500.0,0.00016034,2]
[372098359,1752520025895,-500.0,0.00016034,2]
[372098360,1752520026120,-500.0,0.00016034,2]
[372098361,1752520026150,-500.0,0.00016034,2]
[372098362,1752520026181,-500.0,0.00016034,2]
[372098363,1752520026211,-500.0,0.00016034,2]
[372098364,1752520026241,-500.0,0.00016034,2]
[372098365,1752520026272,-500.0,0.00016034,2]
[372098366,1752520026303,-500.0,0.00016034,2]
[372098367,1752520026335,-481.7573247,0.00016034,2]
[372098368,1752520026369,-500.0,0.00016034,2]
[372098369,1752520026403,-500.0,0.00016034,2]
[372098370,1752520027399,-500.0,0.00016034,2]
[372098371,1752520027429,-500.0,0.00016034,2]
[372098372,1752520027460,-500.0,0.00016034,2]
[372098373,1752520027491,-500.0,0.00016034,2]
[372098374,1752520027522,-500.0,0.00016034,2]
[372098375,1752520027551,-500.0,0.00016034,2]
[372098376,1752520027583,-500.0,0.00016034,2]
[372098377,1752520027613,-500.0,0.00016034,2]
[372098378,1752520027644,-650.0,0.00016034,2]
[372098379,1752520027674,-200.0,0.00016034,2]
[372098380,1752520032791,-300.0,0.00016034,2]
[372098381,1752520032823,-500.0,0.00016034,2]
[372098382,1752520032852,-295.07270046,0.00016034,2]
[372098383,1752520032886,-500.0,0.00016034,2]
[372098384,1752520032915,-500.0,0.00016034,2]
[372098385,1752520032946,-500.0,0.00016034,2]
[372098386,1752520032980,-500.0,0.00016034,2]
[372098387,1752520033011,-500.0,0.00016034,2]
[372098388,1752520033044,-500.0,0.00016034,2]
[372098389,1752520033075,-455.07039467,0.00016034,2]
[372098390,1752520033110,-399.71380974,0.00016034,2]
[372098391,1752520033651,-100.28619026,0.00016034,2]
[372098392,1752520033835,-500.0,0.00016034,2]
[372098393,1752520033868,-500.0,0.00016034,2]
[372098394,1752520033899,-500.0,0.00016034,2]
[372098395,1752520033931,-500.0,0.00016034,2]
[372098396,1752520033965,-500.0,0.00016034,2]
[372098397,1752520033996,-200.00000004,0.00016034,2]
[372098398,1752520034026,-500.0,0.00016034,2]
[372098399,1752520034054,-500.0,0.00016034,2]
[372098400,1752520034085,-500.0,0.00016034,2]
[372098401,1752520034117,-500.0,0.00016034,2]
[372098402,1752520034172,-500.0,0.00016034,2]
[372098403,1752520034201,-500.0,0.00016034,2]
[372098404,1752520034229,-500.0,0.00016034,2]
[372098405,1752520034258,-500.0,0.00016034,2]
[372098406,1752520034292,-500.0,0.00016034,2]
[372098407,1752520034321,-500.0,0.00016034,2]
[372098408,1752520034351,-500.0,0.00016034,2]
[372098409,1752520034382,-235.84280097,0.00016034,2]
[372098410,1752520034410,-500.0,0.00016034,2]
[372098411,1752520034439,-160.32007885,0.00016034,2]
[372098412,1752520034469,-500.0,0.00016034,2]
[372098413,1752520034526,-500.0,0.00016034,2]
[372098414,1752520034554,-500.0,0.00016034,2]
[372098415,1752520034583,-500.0,0.00016034,2]
[372098416,1752520034611,-500.0,0.00016034,2]
[372098417,1752520034641,-500.0,0.00016034,2]
[372098418,1752520034670,-500.0,0.00016034,2]
[372098419,1752520034700,-500.0,0.00016034,2]
[372098420,1752520034729,-369.00878759,0.00016034,2]
[372098421,1752520034758,-500.0,0.00016034,2]
[372098422,1752520034787,-500.0,0.00016034,2]
[372098423,1752520034913,-500.0,0.00016034,2]
[372098424,1752520034944,-500.0,0.00016034,2]
[372098425,1752520034974,-500.0,0.00016034,2]
[372098426,1752520035004,-500.0,0.00016034,2]
[372098427,1752520035033,-500.0,0.00016034,2]
[372098428,1752520035062,-500.0,0.00016034,2]
[372098429,1752520035093,-500.0,0.00016034,2]
[372098430,1752520035124,-500.0,0.00016034,2]
[372098431,1752520035153,-500.0,0.00016034,2]
[372098432,1752520035182,-500.0,0.00016034,2]
[372098433,1752520035502,-500.0,0.00016034,2]
[372098434,1752520035531,-500.0,0.00016034,2]
[372098435,1752520035560,-500.0,0.00016034,2]
[372098436,1752520035589,-500.0,0.00016034,2]
[372098437,1752520035619,-500.0,0.00016034,2]
[372098438,1752520035650,-500.0,0.00016034,2]
[372098439,1752520035680,-500.0,0.00016034,2]
[372098440,1752520035710,-500.0,0.00016034,2]
[372098441,1752520035739,-500.0,0.00016034,2]
[372098442,1752520035769,-500.0,0.00016034,2]
[372098443,1752520036077,-371.6747445,0.00016034,2]
[372098444,1752520036115,-500.0,0.00016034,2]
[372098445,1752520036146,-500.0,0.00016034,2]
[372098446,1752520036180,-500.0,0.00016034,2]
[372098447,1752520036210,-500.0,0.00016034,2]
[372098448,1752520036239,-500.0,0.00016034,2]
[372098449,1752520036271,-500.0,0.00016034,2]
[372098450,1752520036300,-500.0,0.00016034,2]
[372098451,1752520036329,-500.0,0.00016034,2]
[372098452,1752520036358,-500.0,0.00016034,2]
[372098453,1752520036782,-500.0,0.00016034,2]
[372098454,1752520036811,-500.0,0.00016034,2]
[372098455,1752520036841,-500.0,0.00016034,2]
[372098456,1752520036873,-942.97005042,0.00016034,2]
[372098457,1752520036902,-942.97005042,0.00016034,2]
[372098458,1752520036933,-942.97005042,0.00016034,2]
[372098459,1752520036963,-399.20964706,0.00016034,2]
[372098460,1752520037340,-543.76040336,0.00016034,2]
[372098461,1752520037369,-942.97005042,0.00016034,2]
[372098462,1752520037398,-942.97005042,0.00016034,2]
[372098463,1752520037427,-942.97005042,0.00016034,2]
[372098464,1752520037456,-942.97005042,0.00016034,2]
[372098465,1752520037486,-425.7487395,0.00016034,2]
[372098466,1752520037681,-517.22131092,0.00016034,2]
[372098467,1752520037711,-942.97005042,0.00016034,2]
[372098468,1752520037740,-942.97005042,0.00016034,2]
[372098469,1752520037768,-942.97005042,0.00016034,2]
[372098470,1752520037798,-942.97005042,0.00016034,2]
[372098471,1752520037827,-478.82692438,0.00016034,2]
[372098472,1752520038017,-464.14312604,0.00016034,2]
[372098473,1752520038049,-942.97005042,0.00016034,2]
[372098474,1752520038080,-942.97005042,0.00016034,2]
[372098475,1752520038113,-942.97005042,0.00016034,2]
[372098476,1752520038146,-942.97005042,0.00016034,2]
[372098477,1752520038177,-584.98329414,0.00016034,2]
[372098478,1752520038212,-357.98675628,0.00016034,2]
[372098479,1752520038241,-942.97005042,0.00016034,2]
[372098480,1752520038272,-942.97005042,0.00016034,2]
[372098481,1752520038301,-942.97005042,0.00016034,2]
[372098482,1752520038331,-942.97005042,0.00016034,2]
[372098483,1752520038360,-797.29603366,0.00016034,2]
[372098484,1752520038517,-145.67401676,0.00016034,2]
[372098485,1752520038548,-942.97005042,0.00016034,2]
[372098486,1752520038578,-942.97005042,0.00016034,2]
[372098487,1752520038609,-942.97005042,0.00016034,2]
[372098488,1752520038640,-942.97005042,0.00016034,2]
[372098489,1752520038668,-942.97005042,0.00016034,2]
[372098490,1752520039042,-942.97005042,0.00016034,2]
[372098491,1752520039072,-942.97005042,0.00016034,2]
[372098492,1752520039107,-942.97005042,0.00016034,2]
[372098493,1752520039139,-942.97005042,0.00016034,2]
[372098494,1752520039171,-942.97005042,0.00016034,2]
[372098495,1752520039221,-942.97005042,0.00016034,2]
[372098496,1752520039251,-942.97005042,0.00016034,2]
[372098497,1752520039281,-942.97005042,0.00016034,2]
[372098498,1752520039310,-942.97005042,0.00016034,2]
[372098499,1752520039339,-942.97005042,0.00016034,2]
[372098500,1752520069016,-942.97005042,0.00016034,2]
[372098501,1752520069046,-942.97005042,0.00016034,2]
[372098502,1752520069078,-942.97005042,0.00016034,2]
[372098503,1752520069112,-942.97005042,0.00016034,2]
[372098504,1752520069143,-942.97005042,0.00016034,2]
[372098505,1752520069520,-942.97005042,0.00016034,2]
[372098506,1752520069550,-942.97005042,0.00016034,2]
[372098507,1752520069579,-942.97005042,0.00016034,2]
[372098508,1752520069608,-942.97005042,0.00016034,2]
[372098509,1752520069636,-942.97005042,0.00016034,2]
[372098510,1752520069698,-942.97005042,0.00016034,2]
[372098511,1752520069727,-942.97005042,0.00016034,2]
[372098512,1752520069757,-942.97005042,0.00016034,2]
[372098513,1752520069785,-942.97005042,0.00016034,2]
[372098514,1752520069814,-500.0,0.00016034,2]
[372098515,1752520069841,-500.0,0.00016034,2]
[372098516,1752520070054,-1025.9449024,0.00016034,2]
[372098517,1752520070087,-2448.34982102,0.00016034,2]
[372098518,1752520070126,-500.0,0.00016034,2]
[372098519,1752520070380,-2448.34982102,0.00016034,2]
[372098520,1752520070413,-1025.9449024,0.00016034,2]
[372098521,1752520070443,-500.0,0.00016034,2]
[372098522,1752520070576,-2448.34982102,0.00016034,2]
[372098523,1752520070606,-500.0,0.00016034,2]
[372098524,1752520070639,-1025.9449024,0.00016034,2]
[372098525,1752520070759,-2448.34982102,0.00016034,2]
[372098526,1752520070791,-500.0,0.00016034,2]
[372098527,1752520070820,-1025.9449024,0.00016034,2]
[372098528,1752520070850,-598.17573247,0.00016034,2]
[372098529,1752520071025,-2448.34982102,0.00016034,2]